[Event "Live Chess"]
[Site "Chess.com"]
[Date "2023.05.20"]
[Round "-"]
[White "profpirate4"]
[Black "Supertromp"]
[Result "0-1"]
[WhiteElo "1016"]
[BlackElo "2181"]
[TimeControl "300"]
[EndTime "11:09:09 PDT"]
[Termination "Supertromp won by resignation"]

1. d4 {[%clk 0:04:59.2]} 1... Nf6 {[%clk 0:04:58.4]} 2. c4 {[%clk 0:04:57.7]}
2... g6 {[%clk 0:04:57.5]} 3. Nc3 {[%clk 0:04:56.9]} 3... Bg7 {[%clk 0:04:56.8]}
4. f3 {[%clk 0:04:54.4]} 4... O-O {[%clk 0:04:54.8]} 5. e4 {[%clk 0:04:53.3]}
5... d6 {[%clk 0:04:54.1]} 6. Be3 {[%clk 0:04:51.8]} 6... c5 {[%clk 0:04:52.3]}
7. Nge2 {[%clk 0:04:47.6]} 7... cxd4 {[%clk 0:04:40.9]} 8. Nxd4 {[%clk
0:04:46.2]} 8... Nc6 {[%clk 0:04:40]} 9. Be2 {[%clk 0:04:43.6]} 9... Bd7 {[%clk
0:04:29.8]} 10. O-O {[%clk 0:04:41]} 10... Rc8 {[%clk 0:04:24.4]} 11. Nd5 {[%clk
0:04:38]} 11... Nxd5 {[%clk 0:04:10.5]} 12. cxd5 {[%clk 0:04:35.2]} 12... Ne5
{[%clk 0:04:00]} 13. f4 {[%clk 0:04:27.3]} 13... Nc4 {[%clk 0:03:56.8]} 14. Bxc4
{[%clk 0:04:23.1]} 14... Rxc4 {[%clk 0:03:55.4]} 15. Rc1 {[%clk 0:04:19.6]}
15... Rxc1 {[%clk 0:03:39.2]} 16. Qxc1 {[%clk 0:04:17.7]} 16... Qb6 {[%clk
0:03:38.3]} 17. Rd1 {[%clk 0:04:12.1]} 17... Rc8 {[%clk 0:03:34.6]} 18. Qd2
{[%clk 0:04:07.9]} 18... Qa6 {[%clk 0:03:15.6]} 19. b3 {[%clk 0:03:56.2]} 19...
Bg4 {[%clk 0:02:59.2]} 20. Rc1 {[%clk 0:03:51.4]} 20... Rxc1+ {[%clk 0:02:58.8]}
21. Qxc1 {[%clk 0:03:50.4]} 21... Qd3 {[%clk 0:02:58.4]} 22. e5 {[%clk 0:03:27]}
22... dxe5 {[%clk 0:02:53]} 23. fxe5 {[%clk 0:03:24.3]} 23... Bxe5 {[%clk
0:02:51.9]} 24. Nf3 {[%clk 0:03:19.2]} 24... Bxf3 {[%clk 0:02:48.1]} 25. gxf3
{[%clk 0:03:18.2]} 25... Qxd5 {[%clk 0:02:43.4]} 26. f4 {[%clk 0:03:05.1]} 26...
Bd4 {[%clk 0:02:34.6]} 27. Qc8+ {[%clk 0:02:46.2]} 27... Kg7 {[%clk 0:02:33.2]}
28. Bxd4+ {[%clk 0:02:43.3]} 28... Qxd4+ {[%clk 0:02:33.1]} 29. Kg2 {[%clk
0:02:42.2]} 29... Qe4+ {[%clk 0:02:29.2]} 30. Kh3 {[%clk 0:02:38.8]} 30... Qf3+
{[%clk 0:02:24.9]} 31. Kh4 {[%clk 0:02:31.4]} 31... Qxf4+ {[%clk 0:02:24.1]} 32.
Qg4 {[%clk 0:02:29.5]} 32... Qxg4+ {[%clk 0:02:20.9]} 33. Kxg4 {[%clk
0:02:28.5]} 33... f5+ {[%clk 0:02:20.1]} 34. Kf4 {[%clk 0:02:27.5]} 34... Kf6
{[%clk 0:02:19.4]} 35. h4 {[%clk 0:02:25]} 35... e5+ {[%clk 0:02:18.4]} 36. Ke3
{[%clk 0:02:23.8]} 36... f4+ {[%clk 0:02:17.6]} 37. Ke4 {[%clk 0:02:23]} 37...
h6 {[%clk 0:02:16.8]} 38. a4 {[%clk 0:02:21.6]} 38... a5 {[%clk 0:02:16]} 0-1

[Event "Live Chess"]
[Site "Chess.com"]
[Date "2023.05.20"]
[Round "-"]
[White "seuen"]
[Black "Andysav3"]
[Result "0-1"]
[WhiteElo "1148"]
[BlackElo "1693"]
[TimeControl "300"]
[EndTime "11:09:12 PDT"]
[Termination "Andysav3 won by resignation"]

1. e4 {[%clk 0:04:58.8]} 1... c5 {[%clk 0:04:57.6]} 2. c3 {[%clk 0:04:57]} 2...
Nc6 {[%clk 0:04:52.4]} 3. d4 {[%clk 0:04:55.8]} 3... cxd4 {[%clk 0:04:50.2]} 4.
cxd4 {[%clk 0:04:55.7]} 4... d5 {[%clk 0:04:36.9]} 5. exd5 {[%clk 0:04:54.5]}
5... Qxd5 {[%clk 0:04:35.4]} 6. Nf3 {[%clk 0:04:52.9]} 6... Bg4 {[%clk
0:04:31.3]} 7. Nc3 {[%clk 0:04:49.9]} 7... Bxf3 {[%clk 0:04:24.7]} 8. Nxd5
{[%clk 0:04:49]} 8... Bxd1 {[%clk 0:04:23.3]} 9. Nc7+ {[%clk 0:04:46.7]} 9...
Kd8 {[%clk 0:04:22.6]} 10. Nxa8 {[%clk 0:04:45.9]} 10... Bh5 {[%clk 0:04:19.3]}
11. Bf4 {[%clk 0:04:39]} 11... Nf6 {[%clk 0:04:03.6]} 12. Nc7 {[%clk 0:04:34.2]}
12... a6 {[%clk 0:03:58]} 13. Bc4 {[%clk 0:03:50.2]} 13... e6 {[%clk 0:03:52.3]}
14. O-O {[%clk 0:03:38.3]} 14... Bb4 {[%clk 0:03:44.7]} 15. a3 {[%clk
0:03:26.7]} 15... Ba5 {[%clk 0:03:42.6]} 16. b4 {[%clk 0:03:25.3]} 16... Bxc7
{[%clk 0:03:41.1]} 17. Bxc7+ {[%clk 0:03:24.7]} 17... Kxc7 {[%clk 0:03:40.1]}
18. Rac1 {[%clk 0:03:22.4]} 18... Rd8 {[%clk 0:03:32.3]} 19. Rfd1 {[%clk
0:03:19]} 19... Bxd1 {[%clk 0:03:28.3]} 20. Rxd1 {[%clk 0:03:18.9]} 20... Rxd4
{[%clk 0:03:26]} 21. Rxd4 {[%clk 0:03:14.4]} 21... Nxd4 {[%clk 0:03:25]} 22. Bd3
{[%clk 0:03:11.4]} 22... g6 {[%clk 0:03:21.6]} 23. Kf1 {[%clk 0:03:09.8]} 23...
Kd6 {[%clk 0:03:18.1]} 24. Ke1 {[%clk 0:03:03.5]} 24... Nd5 {[%clk 0:03:16.5]}
25. Be4 {[%clk 0:03:01.4]} 25... f5 {[%clk 0:03:10.5]} 26. Bf3 {[%clk
0:02:59.6]} 26... Nxf3+ {[%clk 0:03:06.1]} 27. gxf3 {[%clk 0:02:58.4]} 27... Ke5
{[%clk 0:03:00.8]} 28. Ke2 {[%clk 0:02:56.7]} 28... Kf4 {[%clk 0:02:59.4]} 29.
h3 {[%clk 0:02:54.3]} 29... Nc3+ {[%clk 0:02:55]} 30. Kd3 {[%clk 0:02:48.4]}
30... Nb5 {[%clk 0:02:49.8]} 31. a4 {[%clk 0:02:47.1]} 31... Nd6 {[%clk
0:02:47.7]} 32. Ke2 {[%clk 0:02:45.2]} 32... h5 {[%clk 0:02:44.7]} 33. Kf1
{[%clk 0:02:42]} 33... Kxf3 {[%clk 0:02:43]} 0-1

[Event "Live Chess"]
[Site "Chess.com"]
[Date "2023.05.20"]
[Round "-"]
[White "mach247"]
[Black "JamesWallman"]
[Result "1-0"]
[WhiteElo "1299"]
[BlackElo "769"]
[TimeControl "300"]
[EndTime "11:09:14 PDT"]
[Termination "mach247 won on time"]

1. e4 {[%clk 0:04:59.4]} 1... e5 {[%clk 0:04:55.6]} 2. Nf3 {[%clk 0:04:58.7]}
2... Nc6 {[%clk 0:04:52.7]} 3. Bc4 {[%clk 0:04:57.7]} 3... h6 {[%clk 0:04:48.7]}
4. O-O {[%clk 0:04:55.2]} 4... Nf6 {[%clk 0:04:45.1]} 5. d3 {[%clk 0:04:54.2]}
5... Bc5 {[%clk 0:04:41.2]} 6. c3 {[%clk 0:04:53.3]} 6... d6 {[%clk 0:04:38.1]}
7. h3 {[%clk 0:04:52.3]} 7... O-O {[%clk 0:04:34.5]} 8. b4 {[%clk 0:04:49.7]}
8... Bb6 {[%clk 0:04:30.3]} 9. a4 {[%clk 0:04:49.4]} 9... a5 {[%clk 0:04:26.6]}
10. b5 {[%clk 0:04:47.2]} 10... Ne7 {[%clk 0:04:23.5]} 11. Qe2 {[%clk
0:04:31.1]} 11... Be6 {[%clk 0:04:20.3]} 12. Bxe6 {[%clk 0:04:29.6]} 12... fxe6
{[%clk 0:04:17.4]} 13. Be3 {[%clk 0:04:29.2]} 13... Nh7 {[%clk 0:03:59.9]} 14.
Bxb6 {[%clk 0:04:21.7]} 14... cxb6 {[%clk 0:03:56.2]} 15. c4 {[%clk 0:04:20.8]}
15... Ng6 {[%clk 0:03:45.1]} 16. g3 {[%clk 0:03:46.5]} 16... Ng5 {[%clk
0:03:39.1]} 17. Nxg5 {[%clk 0:03:44.8]} 17... Qxg5 {[%clk 0:03:32.8]} 18. Qg4
{[%clk 0:03:22.1]} 18... Qxg4 {[%clk 0:03:26]} 19. hxg4 {[%clk 0:03:22]} 19...
Rf3 {[%clk 0:03:17.6]} 20. Ra3 {[%clk 0:03:10.7]} 20... Raf8 {[%clk 0:03:11.4]}
21. Nd2 {[%clk 0:03:03.8]} 21... R3f7 {[%clk 0:03:02.4]} 22. Kg2 {[%clk
0:02:47]} 22... Nh8 {[%clk 0:02:50.9]} 23. Nb3 {[%clk 0:02:29]} 23... g5 {[%clk
0:02:45.3]} 24. d4 {[%clk 0:02:27.6]} 24... Rf3 {[%clk 0:02:31.2]} 25. dxe5
{[%clk 0:02:18.9]} 25... dxe5 {[%clk 0:02:26]} 26. Re1 {[%clk 0:02:10.9]} 26...
Rxf2+ {[%clk 0:02:20.4]} 27. Kh3 {[%clk 0:02:10.4]} 27... R2f3 {[%clk
0:02:12.6]} 28. Rea1 {[%clk 0:01:53.8]} 28... R8f4 {[%clk 0:02:02.4]} 29. Nd2
{[%clk 0:01:52.8]} 29... Rxa3 {[%clk 0:01:55]} 30. Rxa3 {[%clk 0:01:52.7]} 30...
Rf2 {[%clk 0:01:50.1]} 31. Rd3 {[%clk 0:01:51.9]} 31... Rf8 {[%clk 0:01:41.6]}
32. Rd7 {[%clk 0:01:48.8]} 32... Rf7 {[%clk 0:01:37.9]} 33. Rd6 {[%clk
0:01:35.6]} 33... Re7 {[%clk 0:01:26.6]} 34. Rxb6 {[%clk 0:01:33.9]} 34... Nf7
{[%clk 0:01:14.5]} 35. c5 {[%clk 0:01:26.6]} 35... Rc7 {[%clk 0:00:59.4]} 36. c6
{[%clk 0:01:24.6]} 36... bxc6 {[%clk 0:00:52.5]} 37. Rxc6 {[%clk 0:01:19.8]}
37... Rd7 {[%clk 0:00:43.7]} 38. Nc4 {[%clk 0:01:15.4]} 38... Rd4 {[%clk
0:00:37.6]} 39. b6 {[%clk 0:00:58.1]} 39... Rd8 {[%clk 0:00:30.7]} 40. b7 {[%clk
0:00:45.9]} 40... Rb8 {[%clk 0:00:15.1]} 41. Rc8+ {[%clk 0:00:45]} 1-0

[Event "Live Chess"]
[Site "Chess.com"]
[Date "2023.05.20"]
[Round "-"]
[White "Lewstar1"]
[Black "BogdanBeleiUkraine"]
[Result "0-1"]
[WhiteElo "454"]
[BlackElo "1175"]
[TimeControl "300"]
[EndTime "11:09:17 PDT"]
[Termination "BogdanBeleiUkraine won by resignation"]

1. d4 {[%clk 0:04:48.1]} 1... d5 {[%clk 0:04:58.3]} 2. Bf4 {[%clk 0:04:44.7]}
2... Nf6 {[%clk 0:04:57.7]} 3. Nf3 {[%clk 0:04:42.2]} 3... Bf5 {[%clk
0:04:57.1]} 4. e3 {[%clk 0:04:34.5]} 4... Nh5 {[%clk 0:04:55.9]} 5. Bd3 {[%clk
0:04:29.7]} 5... Bxd3 {[%clk 0:04:53.2]} 6. Qxd3 {[%clk 0:04:29.6]} 6... Nxf4
{[%clk 0:04:52.1]} 7. exf4 {[%clk 0:04:29.5]} 7... e6 {[%clk 0:04:48.4]} 8. O-O
{[%clk 0:04:22.5]} 8... Nc6 {[%clk 0:04:43.8]} 9. Nc3 {[%clk 0:04:08.2]} 9... a6
{[%clk 0:04:40.3]} 10. Ng5 {[%clk 0:03:53.3]} 10... h6 {[%clk 0:04:29.1]} 11.
Nh7 {[%clk 0:03:47.4]} 11... Bd6 {[%clk 0:04:19.3]} 12. Ne2 {[%clk 0:03:11.2]}
12... f5 {[%clk 0:04:13]} 13. Qg3 {[%clk 0:02:34.6]} 13... Qe7 {[%clk
0:03:52.3]} 14. Qg6+ {[%clk 0:02:27.7]} 14... Kd7 {[%clk 0:03:46.5]} 15. b3
{[%clk 0:01:54.4]} 15... Rag8 {[%clk 0:03:31.5]} 16. c4 {[%clk 0:01:50]} 16...
Qe8 {[%clk 0:03:24.7]} 17. c5 {[%clk 0:01:45.1]} 17... Qxg6 {[%clk 0:03:21.3]}
18. cxd6 {[%clk 0:01:39.6]} 18... cxd6 {[%clk 0:03:19.1]} 19. a4 {[%clk
0:01:32.7]} 19... Rxh7 {[%clk 0:03:16.8]} 0-1

[Event "Live Chess"]
[Site "Chess.com"]
[Date "2023.05.20"]
[Round "-"]
[White "wot-not"]
[Black "1600x"]
[Result "0-1"]
[WhiteElo "1457"]
[BlackElo "1588"]
[TimeControl "300"]
[EndTime "11:09:18 PDT"]
[Termination "1600x won by resignation"]

1. e4 {[%clk 0:04:56.9]} 1... e5 {[%clk 0:04:59.9]} 2. f4 {[%clk 0:04:55.5]}
2... d5 {[%clk 0:04:58.4]} 3. Bd3 {[%clk 0:04:31]} 3... dxe4 {[%clk 0:04:54.3]}
4. Bxe4 {[%clk 0:04:28.6]} 4... Nf6 {[%clk 0:04:52.6]} 5. Bd3 {[%clk 0:04:21.9]}
5... Bg4 {[%clk 0:04:43.9]} 6. Nf3 {[%clk 0:04:19.5]} 6... exf4 {[%clk
0:04:42.7]} 7. O-O {[%clk 0:04:16.7]} 7... Bc5+ {[%clk 0:04:38.4]} 8. Kh1 {[%clk
0:04:15.7]} 8... O-O {[%clk 0:04:34.1]} 9. h3 {[%clk 0:04:15.1]} 9... Bh5 {[%clk
0:04:31.9]} 10. Nc3 {[%clk 0:04:07.5]} 10... Nc6 {[%clk 0:04:29.2]} 11. Ne4
{[%clk 0:04:06.2]} 11... Bb6 {[%clk 0:04:27.8]} 12. Nxf6+ {[%clk 0:04:05]} 12...
Qxf6 {[%clk 0:04:26.2]} 13. Rb1 {[%clk 0:03:53.5]} 13... Ne5 {[%clk 0:04:21.3]}
14. Be2 {[%clk 0:03:47]} 14... Bxf3 {[%clk 0:04:19.6]} 15. Bxf3 {[%clk 0:03:46]}
15... Nxf3 {[%clk 0:04:18]} 16. Qxf3 {[%clk 0:03:44.9]} 16... Qd6 {[%clk
0:04:15.9]} 17. d3 {[%clk 0:03:40]} 17... Be3 {[%clk 0:04:13.5]} 18. Bxe3 {[%clk
0:03:37.2]} 18... fxe3 {[%clk 0:04:12.7]} 19. Qxe3 {[%clk 0:03:36.5]} 19... Rae8
{[%clk 0:04:10.6]} 20. Qxa7 {[%clk 0:03:27.9]} 20... b6 {[%clk 0:04:09.3]} 21.
Qa3 {[%clk 0:03:25.8]} 21... Qg3 {[%clk 0:04:07.4]} 22. Rf3 {[%clk 0:03:15.2]}
22... Re1+ {[%clk 0:04:05.1]} 23. Rxe1 {[%clk 0:03:14]} 23... Qxe1+ {[%clk
0:04:03.8]} 24. Kh2 {[%clk 0:03:13.5]} 24... Qe5+ {[%clk 0:04:02.5]} 25. Rg3
{[%clk 0:03:12.8]} 25... c5 {[%clk 0:04:00.8]} 26. Qc3 {[%clk 0:03:11.6]} 26...
Qxc3 {[%clk 0:03:59.6]} 27. bxc3 {[%clk 0:03:11]} 27... Rb8 {[%clk 0:03:58.4]}
28. Re3 {[%clk 0:03:10.3]} 28... b5 {[%clk 0:03:57.2]} 29. Re5 {[%clk
0:03:07.6]} 29... c4 {[%clk 0:03:55]} 30. d4 {[%clk 0:03:04.6]} 30... Kf8 {[%clk
0:03:53.4]} 31. d5 {[%clk 0:03:03.8]} 31... Rb6 {[%clk 0:03:51.8]} 32. Kg3
{[%clk 0:03:01.1]} 32... g6 {[%clk 0:03:50.5]} 33. Kf4 {[%clk 0:03:00.4]} 33...
Rd6 {[%clk 0:03:48.7]} 34. Ke4 {[%clk 0:02:53.6]} 34... Ra6 {[%clk 0:03:47.5]}
35. Kd4 {[%clk 0:02:43]} 35... Rxa2 {[%clk 0:03:45.7]} 36. Kc5 {[%clk
0:02:42.4]} 36... Rxc2 {[%clk 0:03:44.1]} 37. Kxb5 {[%clk 0:02:40.6]} 37... Rxc3
{[%clk 0:03:42.8]} 38. d6 {[%clk 0:02:38.5]} 38... Rd3 {[%clk 0:03:41.5]} 39.
Rd5 {[%clk 0:02:37.6]} 39... Rxd5+ {[%clk 0:03:39.6]} 40. Kxc4 {[%clk
0:02:34.7]} 40... Rxd6 {[%clk 0:03:38.3]} 0-1

[Event "Live Chess"]
[Site "Chess.com"]
[Date "2023.05.20"]
[Round "-"]
[White "Rusty_Bridges"]
[Black "VovaOvchar1990"]
[Result "0-1"]
[WhiteElo "1364"]
[BlackElo "1194"]
[TimeControl "300"]
[EndTime "11:09:22 PDT"]
[Termination "VovaOvchar1990 won on time"]

1. e4 {[%clk 0:04:55.3]} 1... e5 {[%clk 0:04:58.6]} 2. f4 {[%clk 0:04:51.5]}
2... exf4 {[%clk 0:04:54]} 3. Nf3 {[%clk 0:04:50.3]} 3... Nc6 {[%clk 0:04:48.9]}
4. d4 {[%clk 0:04:46.4]} 4... d6 {[%clk 0:04:45.1]} 5. Bxf4 {[%clk 0:04:45]}
5... Nf6 {[%clk 0:04:41.9]} 6. Nc3 {[%clk 0:04:40.1]} 6... Bg4 {[%clk 0:04:40]}
7. Be2 {[%clk 0:04:37.6]} 7... Ne7 {[%clk 0:04:30.7]} 8. Ng5 {[%clk 0:04:32.8]}
8... Bxe2 {[%clk 0:04:26.4]} 9. Qxe2 {[%clk 0:04:30.9]} 9... h6 {[%clk
0:04:24.1]} 10. Nf3 {[%clk 0:04:26.5]} 10... Ng6 {[%clk 0:04:21.6]} 11. Bg3
{[%clk 0:04:24.2]} 11... Be7 {[%clk 0:04:19.3]} 12. O-O-O {[%clk 0:04:21]} 12...
O-O {[%clk 0:04:17.5]} 13. Bf2 {[%clk 0:04:15.5]} 13... Re8 {[%clk 0:04:15.7]}
14. h3 {[%clk 0:04:10.6]} 14... a6 {[%clk 0:04:00.1]} 15. g4 {[%clk 0:04:09.2]}
15... b5 {[%clk 0:03:57.5]} 16. Rdg1 {[%clk 0:03:39.2]} 16... b4 {[%clk
0:03:55.5]} 17. Na4 {[%clk 0:03:37.7]} 17... Nxe4 {[%clk 0:03:52.4]} 18. Kb1
{[%clk 0:03:17.4]} 18... Nc3+ {[%clk 0:03:26]} 19. bxc3 {[%clk 0:03:06.9]} 19...
bxc3 {[%clk 0:03:19.2]} 20. Nxc3 {[%clk 0:02:51.4]} 20... Qb8+ {[%clk
0:03:16.6]} 21. Ka1 {[%clk 0:02:43.7]} 21... Nf4 {[%clk 0:03:06.5]} 22. Qc4
{[%clk 0:02:35.5]} 22... a5 {[%clk 0:02:49.7]} 23. Rb1 {[%clk 0:02:25.3]} 23...
Qa7 {[%clk 0:02:45.3]} 24. Na4 {[%clk 0:01:48.6]} 24... d5 {[%clk 0:02:38]} 25.
Qf1 {[%clk 0:01:18.9]} 25... Reb8 {[%clk 0:02:23.7]} 26. Be3 {[%clk 0:01:07.6]}
26... Rxb1+ {[%clk 0:02:18.2]} 27. Qxb1 {[%clk 0:01:05.1]} 27... Ne2 {[%clk
0:02:11.2]} 28. c3 {[%clk 0:00:57.3]} 28... Ba3 {[%clk 0:01:57.2]} 29. Qc2
{[%clk 0:00:54.1]} 29... Ng3 {[%clk 0:01:41.5]} 30. Rb1 {[%clk 0:00:40.7]} 30...
Ne4 {[%clk 0:01:34.7]} 31. Rb5 {[%clk 0:00:36.6]} 31... c6 {[%clk 0:01:22.1]}
32. Rb1 {[%clk 0:00:31.7]} 32... Rb8 {[%clk 0:01:16.7]} 33. Rxb8+ {[%clk
0:00:29.6]} 33... Qxb8 {[%clk 0:01:15.5]} 34. Qb3 {[%clk 0:00:29.4]} 34... Qg3
{[%clk 0:01:09.4]} 35. Qxa3 {[%clk 0:00:26.6]} 35... Qxf3 {[%clk 0:01:07.6]} 36.
Bc1 {[%clk 0:00:22.7]} 36... Qxh3 {[%clk 0:00:57.2]} 37. Nc5 {[%clk 0:00:18.9]}
37... Nxc5 {[%clk 0:00:51.9]} 38. Qxc5 {[%clk 0:00:16.6]} 38... Qxg4 {[%clk
0:00:48.9]} 39. Qxc6 {[%clk 0:00:15.6]} 39... Qd1 {[%clk 0:00:46.8]} 40. Kb1
{[%clk 0:00:12.7]} 40... Qd3+ {[%clk 0:00:44.9]} 41. Kb2 {[%clk 0:00:11.8]}
41... Qe2+ {[%clk 0:00:42.5]} 42. Kb3 {[%clk 0:00:10.9]} 42... Qd1+ {[%clk
0:00:39.8]} 43. Ka3 {[%clk 0:00:08]} 43... Qxc1+ {[%clk 0:00:38]} 44. Ka4 {[%clk
0:00:07.9]} 44... Qc2+ {[%clk 0:00:33.2]} 45. Kxa5 {[%clk 0:00:07.3]} 45...
Qxa2+ {[%clk 0:00:30.9]} 46. Kb5 {[%clk 0:00:07]} 46... Qb2+ {[%clk 0:00:26.1]}
47. Kc5 {[%clk 0:00:06.4]} 47... Qxc3+ {[%clk 0:00:24.2]} 48. Kxd5 {[%clk
0:00:05.9]} 48... Qxc6+ {[%clk 0:00:21.7]} 49. Kxc6 {[%clk 0:00:05.1]} 49... Kf8
{[%clk 0:00:21.1]} 50. d5 {[%clk 0:00:05]} 50... Ke8 {[%clk 0:00:20.5]} 51. d6
{[%clk 0:00:04.9]} 51... Kd8 {[%clk 0:00:20.1]} 52. d7 {[%clk 0:00:04.7]} 52...
h5 {[%clk 0:00:19]} 53. Kd5 {[%clk 0:00:04.6]} 53... h4 {[%clk 0:00:18.6]} 54.
Ke4 {[%clk 0:00:04.5]} 54... h3 {[%clk 0:00:18.2]} 55. Kf3 {[%clk 0:00:04.4]}
55... g5 {[%clk 0:00:15.1]} 56. Kg3 {[%clk 0:00:04.3]} 56... Kxd7 {[%clk
0:00:13.7]} 57. Kxh3 {[%clk 0:00:04.2]} 57... Ke6 {[%clk 0:00:13.3]} 58. Kg4
{[%clk 0:00:04.1]} 58... f6 {[%clk 0:00:12.3]} 59. Kf3 {[%clk 0:00:02.6]} 59...
Kf5 {[%clk 0:00:11.4]} 60. Kg2 {[%clk 0:00:02]} 60... Kf4 {[%clk 0:00:10.6]} 61.
Kf2 {[%clk 0:00:01.1]} 61... g4 {[%clk 0:00:09.7]} 62. Kg2 {[%clk 0:00:01]}
62... g3 {[%clk 0:00:08.1]} 0-1

[Event "Live Chess"]
[Site "Chess.com"]
[Date "2023.05.20"]
[Round "-"]
[White "MaximKris"]
[Black "mattihelenius2"]
[Result "1-0"]
[WhiteElo "1869"]
[BlackElo "466"]
[TimeControl "300"]
[EndTime "11:09:25 PDT"]
[Termination "MaximKris won by checkmate"]

1. e4 {[%clk 0:04:59.4]} 1... e5 {[%clk 0:04:57.7]} 2. Nf3 {[%clk 0:04:58.2]}
2... d5 {[%clk 0:04:56.8]} 3. exd5 {[%clk 0:04:56.7]} 3... Qxd5 {[%clk 0:04:56]}
4. Nc3 {[%clk 0:04:55.7]} 4... Qd8 {[%clk 0:04:54.5]} 5. d3 {[%clk 0:04:55.4]}
5... Bg4 {[%clk 0:04:53.7]} 6. h3 {[%clk 0:04:53.7]} 6... Bxf3 {[%clk
0:04:51.7]} 7. Qxf3 {[%clk 0:04:53.6]} 7... Qf6 {[%clk 0:04:49.1]} 8. Qxb7
{[%clk 0:04:52.3]} 8... Qc6 {[%clk 0:04:40]} 9. Qxc6+ {[%clk 0:04:51.5]} 9...
Nxc6 {[%clk 0:04:39.9]} 10. Be3 {[%clk 0:04:50.4]} 10... Nf6 {[%clk 0:04:35.8]}
11. O-O-O {[%clk 0:04:48.1]} 11... Bb4 {[%clk 0:04:30.6]} 12. a3 {[%clk
0:04:45.5]} 12... Bxc3 {[%clk 0:04:27.8]} 13. bxc3 {[%clk 0:04:45.4]} 13... Rd8
{[%clk 0:04:26.6]} 14. d4 {[%clk 0:04:43.7]} 14... e4 {[%clk 0:04:22.2]} 15. Bb5
{[%clk 0:04:42]} 15... O-O {[%clk 0:04:14.5]} 16. Bxc6 {[%clk 0:04:40.9]} 16...
h6 {[%clk 0:04:06.4]} 17. d5 {[%clk 0:04:40]} 17... Nd7 {[%clk 0:04:00.5]} 18.
Bxd7 {[%clk 0:04:38.6]} 18... Rxd7 {[%clk 0:03:59.8]} 19. Bxa7 {[%clk
0:04:38.2]} 19... c6 {[%clk 0:03:57.5]} 20. Bc5 {[%clk 0:04:35.2]} 20... cxd5
{[%clk 0:03:55.6]} 21. Bxf8 {[%clk 0:04:33.8]} 21... Kxf8 {[%clk 0:03:51.8]} 22.
c4 {[%clk 0:04:33.7]} 22... d4 {[%clk 0:03:49.9]} 23. c3 {[%clk 0:04:32.8]}
23... d3 {[%clk 0:03:47.6]} 24. Kd2 {[%clk 0:04:31.8]} 24... Re7 {[%clk
0:03:44.8]} 25. Ke3 {[%clk 0:04:31.7]} 25... Ke8 {[%clk 0:03:37.4]} 26. f3
{[%clk 0:04:31.6]} 26... Rd7 {[%clk 0:03:30.4]} 27. fxe4 {[%clk 0:04:29.6]}
27... d2 {[%clk 0:03:29.7]} 28. Rxd2 {[%clk 0:04:29]} 28... Rxd2 {[%clk
0:03:28]} 29. Kxd2 {[%clk 0:04:28.9]} 29... f6 {[%clk 0:03:27]} 30. Rb1 {[%clk
0:04:28.8]} 30... Kd7 {[%clk 0:03:26.1]} 31. a4 {[%clk 0:04:28.7]} 31... Ke6
{[%clk 0:03:25.4]} 32. a5 {[%clk 0:04:28.6]} 32... Kd7 {[%clk 0:03:24.6]} 33. a6
{[%clk 0:04:28.5]} 33... Kc6 {[%clk 0:03:23.9]} 34. a7 {[%clk 0:04:28.4]} 34...
Kc7 {[%clk 0:03:22.7]} 35. a8=Q {[%clk 0:04:28.3]} 35... g5 {[%clk 0:03:20.8]}
36. Qd5 {[%clk 0:04:28.2]} 36... h5 {[%clk 0:03:17.5]} 37. Rb7+ {[%clk
0:04:28.1]} 37... Kc8 {[%clk 0:03:15]} 38. Qd7# {[%clk 0:04:28]} 1-0

[Event "Live Chess"]
[Site "Chess.com"]
[Date "2023.05.20"]
[Round "-"]
[White "MrDodgy"]
[Black "AyannaTang"]
[Result "1-0"]
[WhiteElo "2316"]
[BlackElo "176"]
[TimeControl "300"]
[EndTime "11:09:27 PDT"]
[Termination "MrDodgy won by checkmate"]

1. d4 {[%clk 0:04:57.6]} 1... e5 {[%clk 0:04:57]} 2. c4 {[%clk 0:04:56.7]} 2...
exd4 {[%clk 0:04:55.5]} 3. Nf3 {[%clk 0:04:49.2]} 3... Nc6 {[%clk 0:04:50.3]} 4.
Nxd4 {[%clk 0:04:46.3]} 4... Nxd4 {[%clk 0:04:48.8]} 5. Qxd4 {[%clk 0:04:45]}
5... Bd6 {[%clk 0:04:24.4]} 6. Nc3 {[%clk 0:04:42.6]} 6... b6 {[%clk 0:04:21.4]}
7. Ne4 {[%clk 0:04:34.2]} 7... Bc5 {[%clk 0:04:18.1]} 8. Nxc5 {[%clk 0:04:26.7]}
8... bxc5 {[%clk 0:04:16.6]} 9. Qe4+ {[%clk 0:04:24.6]} 9... Ne7 {[%clk
0:04:11.4]} 10. Qxa8 {[%clk 0:04:22]} 10... O-O {[%clk 0:04:06.7]} 11. Qf3
{[%clk 0:04:19.2]} 11... Ba6 {[%clk 0:03:43.4]} 12. e3 {[%clk 0:04:15.6]} 12...
Nc6 {[%clk 0:03:28.3]} 13. Bd3 {[%clk 0:04:09.1]} 13... Nb4 {[%clk 0:03:23.4]}
14. Qe2 {[%clk 0:03:57.8]} 14... Nc6 {[%clk 0:02:52.8]} 15. O-O {[%clk
0:03:46.5]} 15... Ne5 {[%clk 0:02:38.7]} 16. f4 {[%clk 0:03:36.7]} 16... Bxc4
{[%clk 0:02:21.1]} 17. Bxc4 {[%clk 0:03:28.5]} 17... Nxc4 {[%clk 0:02:18.2]} 18.
Qxc4 {[%clk 0:03:26.7]} 18... Qe7 {[%clk 0:02:07.8]} 19. f5 {[%clk 0:03:23.3]}
19... Re8 {[%clk 0:02:05.6]} 20. f6 {[%clk 0:03:20.5]} 20... gxf6 {[%clk
0:02:03.8]} 21. Qg4+ {[%clk 0:03:18.3]} 21... Kf8 {[%clk 0:02:00.6]} 22. e4
{[%clk 0:03:16.5]} 22... f5 {[%clk 0:01:57.7]} 23. Bh6# {[%clk 0:03:16.4]} 1-0